[Event "Titled Tuesday Blitz December 06 Early 2022"]
[White "Piesik, Piotr"]
[Black "Yilmaz, Mustafa"]
[WhiteFideId "1136194"]
[BlackFideId "6302718"]
[WhiteElo "2316"]
[BlackElo "2564"]
[Result "0-1"]
[Round "03"]
[TimeControl "180+1"]
[Date "2022.12.06"]
[WhiteClock "0:00:03"]
[BlackClock "0:00:05"]

1. Nf3 {[%clk 0:03:00]}  c5 {[%clk 0:02:55]} 2. e4 {[%clk 0:03:00]}  d6 {[%clk 0:02:54]} 3. Bb5+ {[%clk 0:02:59]}  Bd7 {[%clk 0:02:54]} 4. Bxd7+ {[%clk 0:02:59]}  Nxd7 {[%clk 0:02:55]} 5. O-O {[%clk 0:02:57]}  Ngf6 {[%clk 0:02:55]} 6. Qe2 {[%clk 0:02:57]}  e6 {[%clk 0:02:55]} 7. c3 {[%clk 0:02:57]}  Be7 {[%clk 0:02:53]} 8. d4 {[%clk 0:02:57]}  O-O {[%clk 0:02:52]} 9. e5 {[%clk 0:02:53]}  Ne8 {[%clk 0:02:52]} 10. Bf4 {[%clk 0:02:47]}  cxd4 {[%clk 0:02:48]} 11. exd6 {[%clk 0:02:40]}  Bxd6 {[%clk 0:02:35]} 12. Bxd6 {[%clk 0:02:39]}  Nxd6 {[%clk 0:02:36]} 13. Nxd4 {[%clk 0:02:39]}  Qb6 {[%clk 0:02:22]} 14. Na3 {[%clk 0:02:36]}  Rac8 {[%clk 0:02:20]} 15. Rfd1 {[%clk 0:02:33]}  Nf6 {[%clk 0:02:15]} 16. Nab5 {[%clk 0:02:28]}  Nde4 {[%clk 0:02:00]} 17. f3 {[%clk 0:02:15]}  Nc5 {[%clk 0:01:14]} 18. Kh1 {[%clk 0:02:06]}  Na4 {[%clk 0:01:08]} 19. Rd2 {[%clk 0:02:02]}  a6 {[%clk 0:01:05]} 20. Na3 {[%clk 0:02:01]}  Qc7 {[%clk 0:01:04]} 21. c4 {[%clk 0:01:54]}  Rfe8 {[%clk 0:01:02]} 22. b3 {[%clk 0:01:51]}  Nc5 {[%clk 0:00:59]} 23. Nac2 {[%clk 0:01:50]}  g6 {[%clk 0:00:47]} 24. Ne3 {[%clk 0:01:44]}  e5 {[%clk 0:00:43]} 25. Ndc2 {[%clk 0:01:44]}  e4 {[%clk 0:00:44]} 26. Nd5 {[%clk 0:01:38]}  Qe5 {[%clk 0:00:38]} 27. Re1 {[%clk 0:01:32]}  Rcd8 {[%clk 0:00:32]} 28. Nxf6+ {[%clk 0:01:19]}  Qxf6 {[%clk 0:00:32]} 29. Rxd8 {[%clk 0:01:18]}  Qxd8 {[%clk 0:00:33]} 30. Ne3 {[%clk 0:01:06]}  exf3 {[%clk 0:00:19]} 31. Qxf3 {[%clk 0:01:07]}  Qh4 {[%clk 0:00:17]} 32. Rf1 {[%clk 0:01:04]}  f5 {[%clk 0:00:17]} 33. Nd5 {[%clk 0:01:02]}  Kg7 {[%clk 0:00:16]} 34. Qc3+ {[%clk 0:01:01]}  Kh6 {[%clk 0:00:15]} 35. Qd2+ {[%clk 0:00:58]}  Qg5 {[%clk 0:00:15]} 36. Qd4 {[%clk 0:00:52]}  Ne4 {[%clk 0:00:15]} 37. Kg1 {[%clk 0:00:49]}  Qd2 {[%clk 0:00:13]} 38. Qxd2+ {[%clk 0:00:44]}  Nxd2 {[%clk 0:00:13]} 39. Rd1 {[%clk 0:00:42]}  Ne4 {[%clk 0:00:14]} 40. Nf4 {[%clk 0:00:34]}  Kg5 {[%clk 0:00:13]} 41. g3 {[%clk 0:00:33]}  h5 {[%clk 0:00:13]} 42. Kg2 {[%clk 0:00:32]}  h4 {[%clk 0:00:13]} 43. Rd7 {[%clk 0:00:30]}  hxg3 {[%clk 0:00:13]} 44. hxg3 {[%clk 0:00:30]}  Kf6 {[%clk 0:00:08]} 45. Rxb7 {[%clk 0:00:29]}  g5 {[%clk 0:00:08]} 46. Rb6+ {[%clk 0:00:29]}  Ke5 {[%clk 0:00:07]} 47. Nd5 {[%clk 0:00:26]}  a5 {[%clk 0:00:05]} 48. Rb5 {[%clk 0:00:23]}  Kd4 {[%clk 0:00:05]} 49. Rxa5 {[%clk 0:00:22]}  Nc5 {[%clk 0:00:02]} 50. Ra7 {[%clk 0:00:15]}  Re2+ {[%clk 0:00:03]} 51. Kf3 {[%clk 0:00:15]}  Rd2 {[%clk 0:00:03]} 52. Re7 {[%clk 0:00:11]}  Nd3 {[%clk 0:00:03]} 53. g4 {[%clk 0:00:08]}  Rf2+ {[%clk 0:00:03]} 54. Kg3 {[%clk 0:00:08]}  f4+ {[%clk 0:00:04]} 55. Kh3 {[%clk 0:00:08]}  Rf3+ {[%clk 0:00:05]} 56. Kh2 {[%clk 0:00:08]}  Rg3 {[%clk 0:00:06]} 57. Nf6 {[%clk 0:00:07]}  Ne5 {[%clk 0:00:05]} 58. c5 {[%clk 0:00:03]}  Nf3+ {[%clk 0:00:05]} 0-1


[Site "https://www.chess.com"]

[Event "Titled Tuesday Blitz December 06 Early 2022"]
[White "Pranesh M"]
[Black "Tanenbaum, Zachary"]
[WhiteFideId "35028600"]
[BlackFideId "2060850"]
[WhiteElo "2403"]
[BlackElo "2175"]
[Result "0-1"]
[Round "03"]
[TimeControl "180+1"]
[Date "2022.12.06"]
[WhiteClock "0:00:16"]
[BlackClock "0:00:19"]

1. e4 {[%clk 0:03:00]}  e5 {[%clk 0:02:59]} 2. Nf3 {[%clk 0:03:01]}  Nc6 {[%clk 0:02:59]} 3. Bc4 {[%clk 0:03:02]}  Nf6 {[%clk 0:02:59]} 4. Ng5 {[%clk 0:03:02]}  d5 {[%clk 0:02:59]} 5. exd5 {[%clk 0:03:03]}  Na5 {[%clk 0:02:59]} 6. Bb5+ {[%clk 0:03:03]}  c6 {[%clk 0:02:59]} 7. dxc6 {[%clk 0:03:04]}  bxc6 {[%clk 0:03:00]} 8. Bd3 {[%clk 0:03:05]}  Nd5 {[%clk 0:03:00]} 9. Nf3 {[%clk 0:03:05]}  Bd6 {[%clk 0:03:00]} 10. O-O {[%clk 0:03:06]}  O-O {[%clk 0:03:01]} 11. Re1 {[%clk 0:03:06]}  f5 {[%clk 0:03:01]} 12. Nxe5 {[%clk 0:03:06]}  Qf6 {[%clk 0:03:00]} 13. Nf3 {[%clk 0:03:04]}  g5 {[%clk 0:03:01]} 14. c4 {[%clk 0:03:04]}  Nf4 {[%clk 0:03:01]} 15. Bf1 {[%clk 0:03:04]}  g4 {[%clk 0:03:02]} 16. d4 {[%clk 0:03:05]}  gxf3 {[%clk 0:03:02]} 17. Qxf3 {[%clk 0:03:06]}  Ne6 {[%clk 0:03:03]} 18. Qc3 {[%clk 0:03:06]}  Nb7 {[%clk 0:03:02]} 19. c5 {[%clk 0:03:07]}  Bc7 {[%clk 0:03:01]} 20. b4 {[%clk 0:03:07]}  a5 {[%clk 0:03:01]} 21. b5 {[%clk 0:03:07]}  cxb5 {[%clk 0:03:02]} 22. Bxb5 {[%clk 0:03:07]}  a4 {[%clk 0:03:02]} 23. Bb2 {[%clk 0:03:02]}  Rb8 {[%clk 0:02:25]} 24. Bc4 {[%clk 0:02:59]}  Nxc5 {[%clk 0:01:54]} 25. d5 {[%clk 0:02:37]}  Rxb2 {[%clk 0:01:32]} 26. dxe6 {[%clk 0:02:37]}  Bxe6 {[%clk 0:01:22]} 27. Bxe6+ {[%clk 0:01:42]}  Nxe6 {[%clk 0:01:21]} 28. Qc4 {[%clk 0:01:43]}  Be5 {[%clk 0:00:56]} 29. Na3 {[%clk 0:01:17]}  Kh8 {[%clk 0:00:45]} 30. Qd5 {[%clk 0:01:00]}  Nf4 {[%clk 0:00:21]} 31. Qf3 {[%clk 0:00:43]}  Rg8 {[%clk 0:00:20]} 32. Kh1 {[%clk 0:00:16]}  Rxg2 {[%clk 0:00:18]} 33. Rg1 {[%clk 0:00:14]}  Rxh2+ {[%clk 0:00:18]} 34. Kxh2 {[%clk 0:00:15]}  Qh4+ {[%clk 0:00:18]} 35. Qh3 {[%clk 0:00:16]}  Qxh3# {[%clk 0:00:19]} 0-1


[Site "https://www.chess.com"]

[Event "Titled Tuesday Blitz December 06 Early 2022"]
[White "Predke, Alexandr"]
[Black "Lewicki, Miroslaw"]
[WhiteFideId "24107581"]
[BlackFideId "1113380"]
[WhiteElo "2616"]
[BlackElo "2191"]
[Result "1-0"]
[Round "03"]
[TimeControl "180+1"]
[Date "2022.12.06"]
[WhiteClock "0:00:23"]
[BlackClock "0:00:02"]

1. Nf3 {[%clk 0:03:00]}  c5 {[%clk 0:02:58]} 2. c4 {[%clk 0:02:59]}  Nf6 {[%clk 0:02:56]} 3. Nc3 {[%clk 0:02:59]}  g6 {[%clk 0:02:56]} 4. e4 {[%clk 0:02:57]}  d6 {[%clk 0:02:56]} 5. d4 {[%clk 0:02:58]}  cxd4 {[%clk 0:02:56]} 6. Nxd4 {[%clk 0:02:58]}  Bg7 {[%clk 0:02:56]} 7. f3 {[%clk 0:02:56]}  O-O {[%clk 0:02:55]} 8. Be3 {[%clk 0:02:57]}  Nc6 {[%clk 0:02:54]} 9. Qd2 {[%clk 0:02:56]}  Bd7 {[%clk 0:02:54]} 10. Be2 {[%clk 0:02:56]}  Rc8 {[%clk 0:02:54]} 11. O-O {[%clk 0:02:55]}  a6 {[%clk 0:02:49]} 12. Rfd1 {[%clk 0:02:50]}  Nxd4 {[%clk 0:02:41]} 13. Bxd4 {[%clk 0:02:51]}  Bc6 {[%clk 0:02:39]} 14. b4 {[%clk 0:02:47]}  Bd7 {[%clk 0:02:36]} 15. Rac1 {[%clk 0:02:39]}  Be6 {[%clk 0:02:32]} 16. Na4 {[%clk 0:02:32]}  Nd7 {[%clk 0:02:16]} 17. Be3 {[%clk 0:02:32]}  Qc7 {[%clk 0:01:30]} 18. Qe1 {[%clk 0:02:32]}  Qb8 {[%clk 0:01:29]} 19. Qf2 {[%clk 0:02:32]}  b5 {[%clk 0:01:27]} 20. cxb5 {[%clk 0:02:25]}  axb5 {[%clk 0:01:28]} 21. Nb6 {[%clk 0:02:26]}  Nxb6 {[%clk 0:01:28]} 22. Bxb6 {[%clk 0:02:27]}  Bxa2 {[%clk 0:01:16]} 23. Bxb5 {[%clk 0:02:25]}  Bb3 {[%clk 0:01:17]} 24. Rf1 {[%clk 0:02:21]}  Bh6 {[%clk 0:01:15]} 25. Rc6 {[%clk 0:02:10]}  Be6 {[%clk 0:01:07]} 26. Rb1 {[%clk 0:01:57]}  Bd7 {[%clk 0:00:59]} 27. Rxc8 {[%clk 0:01:56]}  Qxc8 {[%clk 0:00:58]} 28. Bf1 {[%clk 0:01:49]}  Qc3 {[%clk 0:00:50]} 29. b5 {[%clk 0:01:45]}  Rb8 {[%clk 0:00:48]} 30. Ba7 {[%clk 0:01:38]}  Rb7 {[%clk 0:00:47]} 31. Bd4 {[%clk 0:01:39]}  Qa5 {[%clk 0:00:30]} 32. b6 {[%clk 0:01:35]}  Qa3 {[%clk 0:00:25]} 33. Qe1 {[%clk 0:01:27]}  Bg7 {[%clk 0:00:19]} 34. Bf2 {[%clk 0:01:27]}  Bc3 {[%clk 0:00:19]} 35. Qc1 {[%clk 0:01:19]}  Qa5 {[%clk 0:00:13]} 36. Bc4 {[%clk 0:01:07]}  Bc6 {[%clk 0:00:05]} 37. h4 {[%clk 0:01:01]}  e6 {[%clk 0:00:03]} 38. Rb3 {[%clk 0:00:58]}  Bb4 {[%clk 0:00:02]} 39. Bxe6 {[%clk 0:00:58]}  Be8 {[%clk 0:00:02]} 40. Bd5 {[%clk 0:00:49]}  Rxb6 {[%clk 0:00:01]} 41. Bxb6 {[%clk 0:00:49]}  Qxb6+ {[%clk 0:00:02]} 42. Kh1 {[%clk 0:00:46]}  Qd4 {[%clk 0:00:01]} 43. Qc8 {[%clk 0:00:37]}  Qf2 {[%clk 0:00:01]} 44. Qxe8+ {[%clk 0:00:35]}  Kg7 {[%clk 0:00:02]} 45. Qxf7+ {[%clk 0:00:34]}  Kh6 {[%clk 0:00:03]} 46. Qf8+ {[%clk 0:00:23]}  Kh5 {[%clk 0:00:02]} 47. g4+ {[%clk 0:00:23]}  Kxh4 {[%clk 0:00:03]} 48. Qh6+ {[%clk 0:00:22]}  Kg3 {[%clk 0:00:03]} 49. f4+ {[%clk 0:00:23]}  Kxg4 {[%clk 0:00:02]} 50. Be6# {[%clk 0:00:23]} 1-0


[Site "https://www.chess.com"]

[Event "Titled Tuesday Blitz December 06 Early 2022"]
[White "Przybylski, Wojciech"]
[Black "Atakhan, Abtin"]
[WhiteFideId "1117599"]
[BlackFideId "22502203"]
[WhiteElo "2217"]
[BlackElo "2189"]
[Result "1-0"]
[Round "03"]
[TimeControl "180+1"]
[Date "2022.12.07"]
[WhiteClock "0:00:11"]
[BlackClock "0:00:06"]

1. e4 {[%clk 0:02:59]}  c5 {[%clk 0:03:00]} 2. Nf3 {[%clk 0:02:46]}  d6 {[%clk 0:03:00]} 3. d4 {[%clk 0:02:46]}  cxd4 {[%clk 0:03:01]} 4. Nxd4 {[%clk 0:02:47]}  Nf6 {[%clk 0:03:01]} 5. Nc3 {[%clk 0:02:46]}  a6 {[%clk 0:03:02]} 6. Be3 {[%clk 0:02:45]}  e5 {[%clk 0:03:01]} 7. Nb3 {[%clk 0:02:44]}  Be7 {[%clk 0:03:00]} 8. f3 {[%clk 0:02:43]}  Be6 {[%clk 0:03:00]} 9. Qd2 {[%clk 0:02:43]}  h5 {[%clk 0:02:59]} 10. O-O-O {[%clk 0:02:42]}  Nbd7 {[%clk 0:02:58]} 11. Kb1 {[%clk 0:02:42]}  Rc8 {[%clk 0:02:58]} 12. h4 {[%clk 0:02:41]}  b5 {[%clk 0:02:54]} 13. Be2 {[%clk 0:02:40]}  O-O {[%clk 0:02:50]} 14. g4 {[%clk 0:02:34]}  hxg4 {[%clk 0:02:41]} 15. Rdg1 {[%clk 0:02:33]}  Nb6 {[%clk 0:02:39]} 16. fxg4 {[%clk 0:02:27]}  Na4 {[%clk 0:02:34]} 17. Bf3 {[%clk 0:02:15]}  Nxc3+ {[%clk 0:02:23]} 18. bxc3 {[%clk 0:02:14]}  d5 {[%clk 0:02:19]} 19. exd5 {[%clk 0:01:12]}  Bxd5 {[%clk 0:02:17]} 20. Rh3 {[%clk 0:01:09]}  Bxf3 {[%clk 0:02:12]} 21. Rxf3 {[%clk 0:01:04]}  Ne4 {[%clk 0:02:10]} 22. Qxd8 {[%clk 0:01:03]}  Nxc3+ {[%clk 0:02:10]} 23. Kb2 {[%clk 0:00:55]}  Rfxd8 {[%clk 0:02:11]} 24. Bd2 {[%clk 0:00:45]}  Na4+ {[%clk 0:02:09]} 25. Kb1 {[%clk 0:00:45]}  Bxh4 {[%clk 0:01:59]} 26. g5 {[%clk 0:00:44]}  Rc4 {[%clk 0:01:47]} 27. Rh1 {[%clk 0:00:34]}  Nc5 {[%clk 0:01:16]} 28. Rfh3 {[%clk 0:00:28]}  Nxb3 {[%clk 0:01:04]} 29. axb3 {[%clk 0:00:28]}  Rcd4 {[%clk 0:01:04]} 30. Bc1 {[%clk 0:00:28]}  f5 {[%clk 0:00:45]} 31. Rxh4 {[%clk 0:00:26]}  Rxh4 {[%clk 0:00:45]} 32. Rxh4 {[%clk 0:00:26]}  Kf7 {[%clk 0:00:39]} 33. Bb2 {[%clk 0:00:26]}  Rd1+ {[%clk 0:00:36]} 34. Ka2 {[%clk 0:00:26]}  Re1 {[%clk 0:00:36]} 35. c4 {[%clk 0:00:25]}  bxc4 {[%clk 0:00:33]} 36. bxc4 {[%clk 0:00:25]}  Kg6 {[%clk 0:00:31]} 37. Kb3 {[%clk 0:00:20]}  f4 {[%clk 0:00:27]} 38. c5 {[%clk 0:00:15]}  f3 {[%clk 0:00:22]} 39. Rh2 {[%clk 0:00:12]}  e4 {[%clk 0:00:20]} 40. c6 {[%clk 0:00:13]}  e3 {[%clk 0:00:04]} 41. c7 {[%clk 0:00:13]}  f2 {[%clk 0:00:03]} 42. c8=Q {[%clk 0:00:12]}  f1=Q {[%clk 0:00:04]} 43. Qe6+ {[%clk 0:00:11]}  Kxg5 {[%clk 0:00:04]} 44. Qe7+ {[%clk 0:00:11]}  Kg4 {[%clk 0:00:04]} 45. Qxg7+ {[%clk 0:00:10]}  Kf3 {[%clk 0:00:05]} 46. Qf6+ {[%clk 0:00:10]}  Ke4 {[%clk 0:00:05]} 47. Qe6+ {[%clk 0:00:11]}  Kf3 {[%clk 0:00:05]} 48. Qf5+ {[%clk 0:00:11]}  Kg3 {[%clk 0:00:06]} 49. Be5+ {[%clk 0:00:11]} 1-0


[Site "https://www.chess.com"]

[Event "Titled Tuesday Blitz December 06 Early 2022"]
[White "Rangel, Daniel"]
[Black "Palacio,Igor Da Paz"]
[WhiteFideId "2124475"]
[BlackFideId "2121140"]
[WhiteElo "2225"]
[BlackElo "2126"]
[Result "1-0"]
[Round "03"]
[TimeControl "180+1"]
[Date "2022.12.07"]
[WhiteClock "0:00:35"]
[BlackClock "0:00:01"]

1. d4 {[%clk 0:02:55]}  Nf6 {[%clk 0:02:58]} 2. c4 {[%clk 0:02:54]}  g6 {[%clk 0:02:58]} 3. Nc3 {[%clk 0:02:54]}  Bg7 {[%clk 0:02:58]} 4. e4 {[%clk 0:02:55]}  d6 {[%clk 0:02:59]} 5. Nf3 {[%clk 0:02:55]}  O-O {[%clk 0:02:59]} 6. Be2 {[%clk 0:02:55]}  Re8 {[%clk 0:03:00]} 7. O-O {[%clk 0:02:54]}  Bg4 {[%clk 0:02:47]} 8. Ne1 {[%clk 0:02:46]}  Bxe2 {[%clk 0:02:44]} 9. Qxe2 {[%clk 0:02:47]}  Nc6 {[%clk 0:02:39]} 10. Be3 {[%clk 0:02:43]}  e5 {[%clk 0:02:37]} 11. d5 {[%clk 0:02:43]}  Nd4 {[%clk 0:02:37]} 12. Qd1 {[%clk 0:02:44]}  c5 {[%clk 0:02:31]} 13. a3 {[%clk 0:02:41]}  Rf8 {[%clk 0:02:24]} 14. Rb1 {[%clk 0:02:41]}  Nh5 {[%clk 0:02:23]} 15. b4 {[%clk 0:02:30]}  b6 {[%clk 0:02:19]} 16. Nd3 {[%clk 0:02:24]}  f5 {[%clk 0:02:12]} 17. f3 {[%clk 0:02:23]}  Bf6 {[%clk 0:01:37]} 18. bxc5 {[%clk 0:02:15]}  bxc5 {[%clk 0:01:36]} 19. Bh6 {[%clk 0:01:58]}  Bg7 {[%clk 0:01:29]} 20. Bxg7 {[%clk 0:01:58]}  Kxg7 {[%clk 0:01:22]} 21. Rb7+ {[%clk 0:01:57]}  Rf7 {[%clk 0:01:22]} 22. Rxf7+ {[%clk 0:01:52]}  Kxf7 {[%clk 0:01:23]} 23. Qa4 {[%clk 0:01:52]}  Qg5 {[%clk 0:00:57]} 24. Qd7+ {[%clk 0:01:49]}  Qe7 {[%clk 0:00:54]} 25. Qxe7+ {[%clk 0:01:44]}  Kxe7 {[%clk 0:00:55]} 26. Rb1 {[%clk 0:01:44]}  Rc8 {[%clk 0:00:43]} 27. Rb7+ {[%clk 0:01:42]}  Kf6 {[%clk 0:00:37]} 28. exf5 {[%clk 0:01:29]}  gxf5 {[%clk 0:00:35]} 29. g4 {[%clk 0:01:29]}  Nxf3+ {[%clk 0:00:20]} 30. Kf2 {[%clk 0:01:27]}  fxg4 {[%clk 0:00:21]} 31. Ne4+ {[%clk 0:01:21]}  Kg6 {[%clk 0:00:21]} 32. Nxd6 {[%clk 0:01:19]}  Rf8 {[%clk 0:00:21]} 33. Ke3 {[%clk 0:01:04]}  Nd4 {[%clk 0:00:17]} 34. Nxe5+ {[%clk 0:01:03]}  Kg5 {[%clk 0:00:17]} 35. Ne4+ {[%clk 0:01:00]}  Kh4 {[%clk 0:00:15]} 36. Rxh7 {[%clk 0:00:56]}  Rf5 {[%clk 0:00:10]} 37. Ng6+ {[%clk 0:00:49]}  Kh3 {[%clk 0:00:10]} 38. Ng3 {[%clk 0:00:47]}  Rf3+ {[%clk 0:00:09]} 39. Ke4 {[%clk 0:00:40]}  Kxh2 {[%clk 0:00:05]} 40. Nxh5 {[%clk 0:00:40]}  Kg1 {[%clk 0:00:02]} 41. d6 {[%clk 0:00:37]}  g3 {[%clk 0:00:02]} 42. d7 {[%clk 0:00:36]}  Rf2 {[%clk 0:00:01]} 43. Nxg3 {[%clk 0:00:35]} 1-0


[Site "https://www.chess.com"]

[Event "Titled Tuesday Blitz December 06 Early 2022"]
[White "Rose, Felix"]
[Black "Williams, Simon K"]
[WhiteFideId "5105722"]
[BlackFideId "404454"]
[WhiteElo "2039"]
[BlackElo "2468"]
[Result "0-1"]
[Round "03"]
[TimeControl "180+1"]
[Date "2022.12.07"]
[WhiteClock "0:00:11"]
[BlackClock "0:00:17"]

1. d4 {[%clk 0:02:59]}  e6 {[%clk 0:02:58]} 2. e4 {[%clk 0:02:59]}  b6 {[%clk 0:02:57]} 3. Bd3 {[%clk 0:02:58]}  Bb7 {[%clk 0:02:57]} 4. Nf3 {[%clk 0:02:58]}  d6 {[%clk 0:02:55]} 5. O-O {[%clk 0:02:58]}  Nd7 {[%clk 0:02:55]} 6. Qe2 {[%clk 0:02:56]}  g6 {[%clk 0:02:55]} 7. a4 {[%clk 0:02:49]}  a6 {[%clk 0:02:54]} 8. Nbd2 {[%clk 0:02:48]}  Bg7 {[%clk 0:02:54]} 9. c3 {[%clk 0:02:48]}  Ne7 {[%clk 0:02:54]} 10. Re1 {[%clk 0:02:47]}  O-O {[%clk 0:02:53]} 11. Nf1 {[%clk 0:02:47]}  h6 {[%clk 0:02:53]} 12. h3 {[%clk 0:02:46]}  c5 {[%clk 0:02:51]} 13. Bf4 {[%clk 0:02:39]}  e5 {[%clk 0:02:38]} 14. dxe5 {[%clk 0:02:37]}  Nxe5 {[%clk 0:02:37]} 15. Bxe5 {[%clk 0:02:25]}  dxe5 {[%clk 0:02:37]} 16. Bc4 {[%clk 0:02:24]}  Qc7 {[%clk 0:02:32]} 17. Red1 {[%clk 0:02:23]}  Nc6 {[%clk 0:02:05]} 18. Ne3 {[%clk 0:02:13]}  Na5 {[%clk 0:02:04]} 19. Nd5 {[%clk 0:02:10]}  Bxd5 {[%clk 0:02:01]} 20. Bxd5 {[%clk 0:02:09]}  Nb7 {[%clk 0:01:53]} 21. b4 {[%clk 0:02:02]}  Ra7 {[%clk 0:01:31]} 22. Nh4 {[%clk 0:01:54]}  Kh7 {[%clk 0:01:30]} 23. g3 {[%clk 0:01:54]}  Nd6 {[%clk 0:01:27]} 24. Ng2 {[%clk 0:01:47]}  f5 {[%clk 0:01:22]} 25. Rac1 {[%clk 0:01:37]}  f4 {[%clk 0:01:20]} 26. gxf4 {[%clk 0:01:30]}  exf4 {[%clk 0:01:20]} 27. f3 {[%clk 0:01:30]}  Be5 {[%clk 0:01:15]} 28. Qf2 {[%clk 0:01:12]}  c4 {[%clk 0:01:04]} 29. Ne1 {[%clk 0:00:38]}  b5 {[%clk 0:00:54]} 30. a5 {[%clk 0:00:35]}  Qe7 {[%clk 0:00:54]} 31. Kh1 {[%clk 0:00:26]}  Rd7 {[%clk 0:00:50]} 32. Bc6 {[%clk 0:00:15]}  Rc7 {[%clk 0:00:48]} 33. Bd5 {[%clk 0:00:15]}  Ne8 {[%clk 0:00:37]} 34. Rd2 {[%clk 0:00:10]}  Nf6 {[%clk 0:00:37]} 35. Ng2 {[%clk 0:00:09]}  Nh5 {[%clk 0:00:36]} 36. Rcd1 {[%clk 0:00:07]}  Bxc3 {[%clk 0:00:32]} 37. Rc2 {[%clk 0:00:07]}  Be5 {[%clk 0:00:31]} 38. Kh2 {[%clk 0:00:07]}  Qxb4 {[%clk 0:00:30]} 39. Be6 {[%clk 0:00:04]}  Qe7 {[%clk 0:00:29]} 40. Bg4 {[%clk 0:00:04]}  Nf6 {[%clk 0:00:27]} 41. Rcd2 {[%clk 0:00:04]}  Nxg4+ {[%clk 0:00:26]} 42. hxg4 {[%clk 0:00:05]}  c3 {[%clk 0:00:24]} 43. Rd5 {[%clk 0:00:04]}  c2 {[%clk 0:00:24]} 44. Rc1 {[%clk 0:00:05]}  Rfc8 {[%clk 0:00:24]} 45. Rd2 {[%clk 0:00:05]}  Qc5 {[%clk 0:00:19]} 46. Qxc5 {[%clk 0:00:05]}  Rxc5 {[%clk 0:00:19]} 47. Ne1 {[%clk 0:00:06]}  b4 {[%clk 0:00:15]} 48. Rdxc2 {[%clk 0:00:06]}  Rxc2+ {[%clk 0:00:16]} 49. Rxc2 {[%clk 0:00:06]}  Rxc2+ {[%clk 0:00:16]} 50. Nxc2 {[%clk 0:00:07]}  b3 {[%clk 0:00:17]} 51. Na3 {[%clk 0:00:07]}  Bd6 {[%clk 0:00:16]} 52. Nb1 {[%clk 0:00:08]}  Bb4 {[%clk 0:00:17]} 53. Kg2 {[%clk 0:00:09]}  Kg7 {[%clk 0:00:17]} 54. Kf2 {[%clk 0:00:09]}  Kf6 {[%clk 0:00:17]} 55. Ke2 {[%clk 0:00:10]}  h5 {[%clk 0:00:17]} 56. Kd3 {[%clk 0:00:11]}  h4 {[%clk 0:00:17]} 57. Kd4 {[%clk 0:00:10]}  h3 {[%clk 0:00:17]} 58. e5+ {[%clk 0:00:11]}  Ke6 {[%clk 0:00:17]} 0-1


[Site "https://www.chess.com"]

[Event "Titled Tuesday Blitz December 06 Early 2022"]
[White "Rustemov, Alexander"]
[Black "Urbina Perez, Juan Antonio"]
[WhiteFideId "4119002"]
[BlackFideId "2217368"]
[WhiteElo "2802"]
[BlackElo "2197"]
[Result "1-0"]
[Round "03"]
[TimeControl "180+1"]
[Date "2022.12.07"]
[WhiteClock "0:01:04"]
[BlackClock "0:00:49"]

1. d4 {[%clk 0:02:56]}  d5 {[%clk 0:02:58]} 2. c4 {[%clk 0:02:56]}  c6 {[%clk 0:02:59]} 3. Nc3 {[%clk 0:02:56]}  Nf6 {[%clk 0:02:58]} 4. e3 {[%clk 0:02:56]}  a6 {[%clk 0:02:55]} 5. Qc2 {[%clk 0:02:55]}  g6 {[%clk 0:02:53]} 6. Nf3 {[%clk 0:02:54]}  Bg7 {[%clk 0:02:53]} 7. Bd3 {[%clk 0:02:54]}  O-O {[%clk 0:02:53]} 8. O-O {[%clk 0:02:54]}  b5 {[%clk 0:02:49]} 9. b3 {[%clk 0:02:54]}  Nbd7 {[%clk 0:02:39]} 10. Bb2 {[%clk 0:02:51]}  Bb7 {[%clk 0:02:38]} 11. c5 {[%clk 0:02:44]}  a5 {[%clk 0:02:37]} 12. h3 {[%clk 0:02:42]}  b4 {[%clk 0:02:33]} 13. Na4 {[%clk 0:02:40]}  Ba6 {[%clk 0:02:30]} 14. a3 {[%clk 0:02:39]}  Bxd3 {[%clk 0:02:22]} 15. Qxd3 {[%clk 0:02:39]}  bxa3 {[%clk 0:02:23]} 16. Rxa3 {[%clk 0:02:38]}  Re8 {[%clk 0:02:24]} 17. Rfa1 {[%clk 0:02:37]}  Ne4 {[%clk 0:02:23]} 18. Bc3 {[%clk 0:02:19]}  Qc7 {[%clk 0:02:11]} 19. Nb2 {[%clk 0:02:17]}  Ndxc5 {[%clk 0:02:05]} 20. Qc2 {[%clk 0:02:07]}  Nb7 {[%clk 0:02:03]} 21. Nd3 {[%clk 0:02:03]}  Nxc3 {[%clk 0:01:55]} 22. Qxc3 {[%clk 0:01:59]}  e6 {[%clk 0:01:53]} 23. b4 {[%clk 0:01:53]}  Bf8 {[%clk 0:01:48]} 24. Ra4 {[%clk 0:01:48]}  Ra7 {[%clk 0:01:38]} 25. bxa5 {[%clk 0:01:46]}  Rea8 {[%clk 0:01:35]} 26. a6 {[%clk 0:01:44]}  Nd6 {[%clk 0:01:35]} 27. Nfe5 {[%clk 0:01:43]}  Rc8 {[%clk 0:01:18]} 28. Rc1 {[%clk 0:01:41]}  Qb6 {[%clk 0:01:07]} 29. Qc5 {[%clk 0:01:33]}  Qxc5 {[%clk 0:01:01]} 30. Rxc5 {[%clk 0:01:31]}  Nb5 {[%clk 0:00:55]} 31. Rxc6 {[%clk 0:01:29]}  Rca8 {[%clk 0:00:52]} 32. Rb6 {[%clk 0:01:25]}  Nc7 {[%clk 0:00:51]} 33. Nc5 {[%clk 0:01:15]}  Bxc5 {[%clk 0:00:48]} 34. dxc5 {[%clk 0:01:16]}  Rxa6 {[%clk 0:00:49]} 35. Raxa6 {[%clk 0:01:14]}  Nxa6 {[%clk 0:00:49]} 36. c6 {[%clk 0:01:05]}  Rc8 {[%clk 0:00:49]} 37. Rxa6 {[%clk 0:01:04]} 1-0


[Site "https://www.chess.com"]